[Event "Titled Tuesday Blitz February 07 Early 2023"]
[White "Baghdasaryan, Vahe"]
[Black "Topalov, Aleksandar"]
[WhiteFideId "13303139"]
[BlackFideId "925659"]
[WhiteElo "2257"]
[BlackElo "2233"]
[Result "0-1"]
[Round "05"]
[TimeControl "180+2"]
[Date "2023.02.07"]
[WhiteClock "0:00:02"]
[BlackClock "0:00:04"]

1. e4 {[%clk 0:03:00]}  e6 {[%clk 0:02:59]} 2. d4 {[%clk 0:03:00]}  d5 {[%clk 0:02:59]} 3. Nc3 {[%clk 0:03:00]}  Bb4 {[%clk 0:02:58]} 4. Ne2 {[%clk 0:02:59]}  Nf6 {[%clk 0:02:57]} 5. Bg5 {[%clk 0:02:50]}  h6 {[%clk 0:02:56]} 6. Bxf6 {[%clk 0:02:48]}  Qxf6 {[%clk 0:02:57]} 7. a3 {[%clk 0:02:45]}  Bxc3+ {[%clk 0:02:55]} 8. Nxc3 {[%clk 0:02:46]}  O-O {[%clk 0:02:55]} 9. exd5 {[%clk 0:02:36]}  Rd8 {[%clk 0:02:47]} 10. dxe6 {[%clk 0:02:32]}  Bxe6 {[%clk 0:02:44]} 11. Bd3 {[%clk 0:01:54]}  Rxd4 {[%clk 0:02:25]} 12. O-O {[%clk 0:01:52]}  c6 {[%clk 0:02:23]} 13. Ne4 {[%clk 0:01:41]}  Qe5 {[%clk 0:02:03]} 14. Re1 {[%clk 0:01:40]}  Nd7 {[%clk 0:01:59]} 15. Ng3 {[%clk 0:01:34]}  Qd6 {[%clk 0:01:57]} 16. Qe2 {[%clk 0:01:32]}  Nc5 {[%clk 0:01:53]} 17. Nf5 {[%clk 0:01:17]}  Bxf5 {[%clk 0:01:36]} 18. Bxf5 {[%clk 0:01:18]}  g6 {[%clk 0:01:17]} 19. Bh3 {[%clk 0:01:18]}  Rd2 {[%clk 0:01:12]} 20. Qe3 {[%clk 0:01:18]}  Rd8 {[%clk 0:00:54]} 21. b4 {[%clk 0:01:17]}  Na4 {[%clk 0:00:43]} 22. Qxa7 {[%clk 0:01:16]}  Nc3 {[%clk 0:00:38]} 23. Qe3 {[%clk 0:01:03]}  Rxc2 {[%clk 0:00:32]} 24. Qxh6 {[%clk 0:01:01]}  Qf6 {[%clk 0:00:25]} 25. f3 {[%clk 0:00:35]}  Ne2+ {[%clk 0:00:23]} 26. Kh1 {[%clk 0:00:35]}  Nf4 {[%clk 0:00:23]} 27. Rad1 {[%clk 0:00:30]}  Rf8 {[%clk 0:00:15]} 28. Re4 {[%clk 0:00:14]}  Nxh3 {[%clk 0:00:11]} 29. Qxh3 {[%clk 0:00:15]}  Ra2 {[%clk 0:00:07]} 30. f4 {[%clk 0:00:14]}  Qb2 {[%clk 0:00:06]} 31. Qf3 {[%clk 0:00:13]}  Rxa3 {[%clk 0:00:06]} 32. Qg4 {[%clk 0:00:13]}  Qc2 {[%clk 0:00:03]} 33. Ree1 {[%clk 0:00:11]}  Qf5 {[%clk 0:00:03]} 34. Qh4 {[%clk 0:00:10]}  Kg7 {[%clk 0:00:02]} 35. Re5 {[%clk 0:00:10]}  Qf6 {[%clk 0:00:02]} 36. Qxf6+ {[%clk 0:00:09]}  Kxf6 {[%clk 0:00:03]} 37. g3 {[%clk 0:00:09]}  Rb3 {[%clk 0:00:03]} 38. Rd6+ {[%clk 0:00:09]}  Kg7 {[%clk 0:00:03]} 39. b5 {[%clk 0:00:08]}  Rxb5 {[%clk 0:00:03]} 40. Rxb5 {[%clk 0:00:08]}  cxb5 {[%clk 0:00:03]} 41. Rb6 {[%clk 0:00:09]}  Rc8 {[%clk 0:00:03]} 42. Rxb7 {[%clk 0:00:09]}  Rc5 {[%clk 0:00:03]} 43. Kg2 {[%clk 0:00:09]}  Kf6 {[%clk 0:00:03]} 44. h4 {[%clk 0:00:09]}  Ke6 {[%clk 0:00:04]} 45. Kf3 {[%clk 0:00:09]}  f5 {[%clk 0:00:03]} 46. Rb6+ {[%clk 0:00:09]}  Kf7 {[%clk 0:00:03]} 47. Ke3 {[%clk 0:00:08]}  Rc3+ {[%clk 0:00:03]} 48. Kd4 {[%clk 0:00:09]}  Rxg3 {[%clk 0:00:03]} 49. Rb7+ {[%clk 0:00:09]}  Kf6 {[%clk 0:00:02]} 50. Rb6+ {[%clk 0:00:09]}  Kg7 {[%clk 0:00:02]} 51. Rxb5 {[%clk 0:00:09]}  Rg4 {[%clk 0:00:03]} 52. Ke5 {[%clk 0:00:09]}  Rxh4 {[%clk 0:00:03]} 53. Rb7+ {[%clk 0:00:09]}  Kh6 {[%clk 0:00:03]} 54. Rb8 {[%clk 0:00:08]}  Rg4 {[%clk 0:00:04]} 55. Kf6 {[%clk 0:00:08]}  Kh7 {[%clk 0:00:04]} 56. Rb7+ {[%clk 0:00:07]}  Kh6 {[%clk 0:00:04]} 57. Rb8 {[%clk 0:00:07]}  Kh7 {[%clk 0:00:05]} 58. Rb7+ {[%clk 0:00:05]}  Kh6 {[%clk 0:00:05]} 59. Rb1 {[%clk 0:00:05]}  Rh4 {[%clk 0:00:03]} 60. Rb8 {[%clk 0:00:04]}  Kh5 {[%clk 0:00:02]} 61. Rh8+ {[%clk 0:00:02]}  Kg4 {[%clk 0:00:03]} 62. Rg8 {[%clk 0:00:02]}  Kxf4 {[%clk 0:00:03]} 63. Rxg6 {[%clk 0:00:03]}  Rg4 {[%clk 0:00:03]} 64. Rh6 {[%clk 0:00:03]}  Rg8 {[%clk 0:00:02]} 65. Rh1 {[%clk 0:00:02]}  Rf8+ {[%clk 0:00:02]} 66. Ke6 {[%clk 0:00:02]}  Re8+ {[%clk 0:00:02]} 67. Kf7 {[%clk 0:00:02]}  Re3 {[%clk 0:00:02]} 68. Kf6 {[%clk 0:00:02]}  Rf3 {[%clk 0:00:02]} 69. Rh4+ {[%clk 0:00:02]}  Ke3 {[%clk 0:00:02]} 70. Ra4 {[%clk 0:00:02]}  f4 {[%clk 0:00:02]} 71. Kf5 {[%clk 0:00:03]}  Rf2 {[%clk 0:00:02]} 72. Ra3+ {[%clk 0:00:02]}  Ke2 {[%clk 0:00:02]} 73. Ke4 {[%clk 0:00:03]}  f3 {[%clk 0:00:02]} 74. Ra2+ {[%clk 0:00:02]}  Kf1 {[%clk 0:00:03]} 75. Ra1+ {[%clk 0:00:03]}  Kg2 {[%clk 0:00:03]} 76. Kf4 {[%clk 0:00:03]}  Re2 {[%clk 0:00:04]} 77. Kg4 {[%clk 0:00:02]}  f2 {[%clk 0:00:04]} 0-1


[Site "https://www.chess.com"]

[Event "Titled Tuesday Blitz February 07 Early 2023"]
[White "Miszler, Levente"]
[Black "Sturt, Raven"]
[WhiteFideId "763276"]
[BlackFideId "2007304"]
[WhiteElo "2271"]
[BlackElo "2470"]
[Result "0-1"]
[Round "05"]
[TimeControl "180+2"]
[Date "2023.02.07"]
[WhiteClock "0:00:08"]
[BlackClock "0:00:42"]

1. d4 {[%clk 0:02:57]}  f5 {[%clk 0:02:59]} 2. g3 {[%clk 0:02:51]}  Nf6 {[%clk 0:02:59]} 3. Bg2 {[%clk 0:02:51]}  g6 {[%clk 0:03:00]} 4. c4 {[%clk 0:02:52]}  Bg7 {[%clk 0:03:01]} 5. Nc3 {[%clk 0:02:52]}  O-O {[%clk 0:03:01]} 6. e4 {[%clk 0:02:51]}  fxe4 {[%clk 0:03:00]} 7. Nxe4 {[%clk 0:02:51]}  Nxe4 {[%clk 0:02:57]} 8. Bxe4 {[%clk 0:02:52]}  c6 {[%clk 0:02:56]} 9. Ne2 {[%clk 0:02:45]}  d5 {[%clk 0:02:55]} 10. cxd5 {[%clk 0:02:40]}  cxd5 {[%clk 0:02:54]} 11. Qb3 {[%clk 0:02:40]}  e6 {[%clk 0:02:48]} 12. Bg2 {[%clk 0:02:36]}  Nc6 {[%clk 0:02:48]} 13. Be3 {[%clk 0:02:36]}  Bd7 {[%clk 0:02:48]} 14. O-O {[%clk 0:02:34]}  Na5 {[%clk 0:02:47]} 15. Qd3 {[%clk 0:02:26]}  Qb6 {[%clk 0:02:39]} 16. b3 {[%clk 0:02:25]}  Rac8 {[%clk 0:02:12]} 17. Rac1 {[%clk 0:02:21]}  Nc6 {[%clk 0:02:10]} 18. Rfe1 {[%clk 0:02:09]}  Qa5 {[%clk 0:02:03]} 19. a4 {[%clk 0:01:44]}  Qb6 {[%clk 0:01:57]} 20. Bh3 {[%clk 0:01:39]}  Rf7 {[%clk 0:01:54]} 21. Red1 {[%clk 0:01:28]}  Re8 {[%clk 0:01:46]} 22. Nf4 {[%clk 0:01:25]}  Na5 {[%clk 0:01:45]} 23. b4 {[%clk 0:01:11]}  Nc4 {[%clk 0:01:33]} 24. Rxc4 {[%clk 0:01:10]}  dxc4 {[%clk 0:01:33]} 25. Qxc4 {[%clk 0:01:11]}  Qc6 {[%clk 0:01:11]} 26. Qxc6 {[%clk 0:00:59]}  bxc6 {[%clk 0:01:12]} 27. Nd3 {[%clk 0:00:52]}  e5 {[%clk 0:01:12]} 28. Bxd7 {[%clk 0:00:31]}  Rxd7 {[%clk 0:01:13]} 29. Nc5 {[%clk 0:00:29]}  Rd5 {[%clk 0:01:11]} 30. Nb3 {[%clk 0:00:23]}  exd4 {[%clk 0:01:11]} 31. Bf4 {[%clk 0:00:22]}  g5 {[%clk 0:01:07]} 32. Bd2 {[%clk 0:00:21]}  h6 {[%clk 0:01:02]} 33. Kf1 {[%clk 0:00:21]}  Rf8 {[%clk 0:01:00]} 34. Rc1 {[%clk 0:00:18]}  Rf3 {[%clk 0:00:56]} 35. Na5 {[%clk 0:00:15]}  Rdf5 {[%clk 0:00:49]} 36. Be1 {[%clk 0:00:14]}  d3 {[%clk 0:00:45]} 37. Rd1 {[%clk 0:00:15]}  Bd4 {[%clk 0:00:43]} 38. Rd2 {[%clk 0:00:15]}  Bc3 {[%clk 0:00:43]} 39. Rd1 {[%clk 0:00:15]}  d2 {[%clk 0:00:42]} 40. Nxc6 {[%clk 0:00:07]}  dxe1=Q+ {[%clk 0:00:41]} 41. Rxe1 {[%clk 0:00:08]}  Rxf2+ {[%clk 0:00:41]} 42. Kg1 {[%clk 0:00:08]}  Bxe1 {[%clk 0:00:41]} 43. Ne7+ {[%clk 0:00:08]}  Kf7 {[%clk 0:00:42]} 0-1


[Site "https://www.chess.com"]

[Event "Titled Tuesday Blitz February 07 Early 2023"]
[White "Lacasa Diaz, Jose Antonio"]
[Black "Ozates, Tuna"]
[WhiteFideId "2203375"]
[BlackFideId "6354521"]
[WhiteElo "2359"]
[BlackElo "2251"]
[Result "0-1"]
[Round "05"]
[TimeControl "180+2"]
[Date "2023.02.07"]
[WhiteClock "0:00:14"]
[BlackClock "0:00:56"]

1. e4 {[%clk 0:03:00]}  c5 {[%clk 0:02:59]} 2. Nf3 {[%clk 0:03:00]}  Nc6 {[%clk 0:03:00]} 3. Bb5 {[%clk 0:03:00]}  g6 {[%clk 0:02:59]} 4. Bxc6 {[%clk 0:03:00]}  bxc6 {[%clk 0:03:00]} 5. O-O {[%clk 0:02:59]}  Bg7 {[%clk 0:03:01]} 6. Re1 {[%clk 0:02:59]}  Nh6 {[%clk 0:02:58]} 7. c3 {[%clk 0:02:58]}  O-O {[%clk 0:02:58]} 8. d4 {[%clk 0:02:58]}  cxd4 {[%clk 0:02:59]} 9. cxd4 {[%clk 0:02:58]}  d5 {[%clk 0:03:00]} 10. e5 {[%clk 0:02:48]}  f6 {[%clk 0:02:59]} 11. Bf4 {[%clk 0:02:45]}  g5 {[%clk 0:02:58]} 12. Bg3 {[%clk 0:02:43]}  g4 {[%clk 0:02:59]} 13. Nfd2 {[%clk 0:02:38]}  f5 {[%clk 0:02:57]} 14. f4 {[%clk 0:02:30]}  gxf3 {[%clk 0:02:53]} 15. Nxf3 {[%clk 0:02:30]}  f4 {[%clk 0:02:50]} 16. Bf2 {[%clk 0:02:27]}  Bg4 {[%clk 0:02:50]} 17. Nbd2 {[%clk 0:02:24]}  Rb8 {[%clk 0:02:46]} 18. b3 {[%clk 0:02:22]}  Qe8 {[%clk 0:02:46]} 19. h3 {[%clk 0:02:20]}  Bh5 {[%clk 0:02:41]} 20. Rc1 {[%clk 0:02:18]}  Qg6 {[%clk 0:02:39]} 21. Qc2 {[%clk 0:02:14]}  Nf5 {[%clk 0:02:34]} 22. Qxc6 {[%clk 0:02:10]}  e6 {[%clk 0:02:32]} 23. Qd7 {[%clk 0:01:48]}  Rf7 {[%clk 0:02:29]} 24. Rc8+ {[%clk 0:01:44]}  Rxc8 {[%clk 0:02:26]} 25. Qxc8+ {[%clk 0:01:44]}  Rf8 {[%clk 0:02:26]} 26. Qd7 {[%clk 0:01:32]}  Bh6 {[%clk 0:02:24]} 27. Rc1 {[%clk 0:01:05]}  Ne3 {[%clk 0:02:14]} 28. Nh4 {[%clk 0:01:06]}  Qf7 {[%clk 0:01:28]} 29. Qxf7+ {[%clk 0:01:06]}  Rxf7 {[%clk 0:01:27]} 30. Rc6 {[%clk 0:01:01]}  Re7 {[%clk 0:01:24]} 31. Nhf3 {[%clk 0:00:50]}  Rg7 {[%clk 0:01:17]} 32. Rc8+ {[%clk 0:00:44]}  Kf7 {[%clk 0:01:15]} 33. Rc7+ {[%clk 0:00:44]}  Kf8 {[%clk 0:01:13]} 34. Rxg7 {[%clk 0:00:45]}  Kxg7 {[%clk 0:01:13]} 35. Nf1 {[%clk 0:00:38]}  Nd1 {[%clk 0:01:07]} 36. Be1 {[%clk 0:00:33]}  Nb2 {[%clk 0:01:01]} 37. Bd2 {[%clk 0:00:28]}  Nd3 {[%clk 0:00:57]} 38. Kh2 {[%clk 0:00:21]}  Kg6 {[%clk 0:00:57]} 39. Kg1 {[%clk 0:00:14]}  Kf5 {[%clk 0:00:56]} 0-1


[Site "https://www.chess.com"]

[Event "Titled Tuesday Blitz February 07 Early 2023"]
[White "Golubev, Mikhail"]
[Black "OKEKE, Isaac Chukwudalu"]
[WhiteFideId "14100983"]
[BlackFideId "8508526"]
[WhiteElo "2461"]
[BlackElo "2155"]
[Result "1-0"]
[Round "05"]
[TimeControl "180+2"]
[Date "2023.02.07"]
[WhiteClock "0:01:52"]
[BlackClock "0:00:16"]

1. e4 {[%clk 0:03:00]}  c5 {[%clk 0:02:53]} 2. Nf3 {[%clk 0:02:59]}  d6 {[%clk 0:02:53]} 3. d4 {[%clk 0:02:59]}  cxd4 {[%clk 0:02:52]} 4. Nxd4 {[%clk 0:02:59]}  Nf6 {[%clk 0:02:52]} 5. Nc3 {[%clk 0:03:00]}  a6 {[%clk 0:02:51]} 6. Bc4 {[%clk 0:02:59]}  e6 {[%clk 0:02:51]} 7. O-O {[%clk 0:03:00]}  Be7 {[%clk 0:02:50]} 8. Bb3 {[%clk 0:02:59]}  O-O {[%clk 0:02:50]} 9. f4 {[%clk 0:02:59]}  Qc7 {[%clk 0:02:49]} 10. f5 {[%clk 0:02:51]}  e5 {[%clk 0:01:56]} 11. Nde2 {[%clk 0:02:49]}  Qc5+ {[%clk 0:01:42]} 12. Kh1 {[%clk 0:02:48]}  h6 {[%clk 0:01:10]} 13. Ng3 {[%clk 0:02:46]}  b5 {[%clk 0:01:07]} 14. Nd5 {[%clk 0:02:43]}  Nxd5 {[%clk 0:01:04]} 15. Bxd5 {[%clk 0:02:42]}  Ra7 {[%clk 0:00:57]} 16. f6 {[%clk 0:02:35]}  Bxf6 {[%clk 0:00:50]} 17. Rxf6 {[%clk 0:02:24]}  gxf6 {[%clk 0:00:50]} 18. Qh5 {[%clk 0:02:00]}  Be6 {[%clk 0:00:19]} 19. Bxh6 {[%clk 0:01:57]}  Nd7 {[%clk 0:00:16]} 20. Bxe6 {[%clk 0:01:52]} 1-0


[Site "https://www.chess.com"]

[Event "Titled Tuesday Blitz February 07 Early 2023"]
[White "Decuigniere, Tom"]
[Black "Jenkins, Drake"]
[WhiteFideId "26093820"]
[BlackFideId "2022397"]
[WhiteElo "2382"]
[BlackElo "2130"]
[Result "1-0"]
[Round "05"]
[TimeControl "180+2"]
[Date "2023.02.07"]
[WhiteClock "0:00:24"]
[BlackClock "0:00:04"]

1. c4 {[%clk 0:03:00]}  Nf6 {[%clk 0:02:27]} 2. Nc3 {[%clk 0:02:59]}  c5 {[%clk 0:02:27]} 3. g3 {[%clk 0:02:59]}  Nc6 {[%clk 0:02:26]} 4. Bg2 {[%clk 0:03:00]}  g6 {[%clk 0:02:25]} 5. d3 {[%clk 0:02:59]}  Bg7 {[%clk 0:02:25]} 6. Bf4 {[%clk 0:03:00]}  a6 {[%clk 0:02:15]} 7. Qd2 {[%clk 0:03:00]}  O-O {[%clk 0:02:13]} 8. Bh6 {[%clk 0:02:53]}  Rb8 {[%clk 0:02:13]} 9. h4 {[%clk 0:02:52]}  b5 {[%clk 0:01:56]} 10. h5 {[%clk 0:02:51]}  bxc4 {[%clk 0:01:55]} 11. hxg6 {[%clk 0:02:46]}  fxg6 {[%clk 0:01:53]} 12. Bxg7 {[%clk 0:02:34]}  Kxg7 {[%clk 0:01:53]} 13. dxc4 {[%clk 0:02:32]}  Bb7 {[%clk 0:01:37]} 14. Nd5 {[%clk 0:02:28]}  Ng8 {[%clk 0:01:31]} 15. Qc3+ {[%clk 0:02:23]}  e5 {[%clk 0:01:30]} 16. Nf3 {[%clk 0:02:20]}  d6 {[%clk 0:01:27]} 17. e3 {[%clk 0:02:10]}  Nb4 {[%clk 0:00:49]} 18. Nxe5 {[%clk 0:01:48]}  Nxd5 {[%clk 0:00:46]} 19. cxd5 {[%clk 0:01:25]}  dxe5 {[%clk 0:00:46]} 20. Qxc5 {[%clk 0:01:15]}  Nf6 {[%clk 0:00:28]} 21. O-O {[%clk 0:01:12]}  Rf7 {[%clk 0:00:16]} 22. Rad1 {[%clk 0:01:10]}  Rd7 {[%clk 0:00:15]} 23. e4 {[%clk 0:01:06]}  Qc7 {[%clk 0:00:15]} 24. Qe3 {[%clk 0:01:04]}  a5 {[%clk 0:00:13]} 25. Rc1 {[%clk 0:01:04]}  Qd6 {[%clk 0:00:13]} 26. f4 {[%clk 0:01:03]}  Ba6 {[%clk 0:00:12]} 27. Rc6 {[%clk 0:00:57]}  Qb4 {[%clk 0:00:04]} 28. Rxa6 {[%clk 0:00:48]}  Qxb2 {[%clk 0:00:04]} 29. fxe5 {[%clk 0:00:41]}  Ng4 {[%clk 0:00:03]} 30. Qc5 {[%clk 0:00:29]}  Rb5 {[%clk 0:00:04]} 31. Qf8# {[%clk 0:00:24]} 1-0


[Site "https://www.chess.com"]

[Event "Titled Tuesday Blitz February 07 Early 2023"]
[White "Ezat, Mohamed"]
[Black "Afanasieva, Alexandra"]
[WhiteFideId "10600906"]
[BlackFideId "34126926"]
[WhiteElo "2402"]
[BlackElo "1857"]
[Result "1-0"]
[Round "05"]
[TimeControl "180+2"]
[Date "2023.02.07"]
[WhiteClock "0:00:03"]
[BlackClock "0:00:03"]

1. d4 {[%clk 0:00:38]}  Nf6 {[%clk 0:02:58]} 2. c4 {[%clk 0:00:38]}  e6 {[%clk 0:02:58]} 3. Nc3 {[%clk 0:00:38]}  Bb4 {[%clk 0:02:58]} 4. e3 {[%clk 0:00:39]}  O-O {[%clk 0:02:56]} 5. a3 {[%clk 0:00:39]}  Bxc3+ {[%clk 0:02:54]} 6. bxc3 {[%clk 0:00:40]}  d5 {[%clk 0:02:55]} 7. cxd5 {[%clk 0:00:38]}  exd5 {[%clk 0:02:55]} 8. Bd3 {[%clk 0:00:39]}  Bg4 {[%clk 0:02:53]} 9. f3 {[%clk 0:00:39]}  Bh5 {[%clk 0:02:53]} 10. Ne2 {[%clk 0:00:39]}  Nbd7 {[%clk 0:02:52]} 11. O-O {[%clk 0:00:39]}  Re8 {[%clk 0:02:51]} 12. Nf4 {[%clk 0:00:39]}  Bg6 {[%clk 0:02:51]} 13. Ra2 {[%clk 0:00:36]}  c5 {[%clk 0:02:48]} 14. Re2 {[%clk 0:00:34]}  c4 {[%clk 0:02:41]} 15. Bc2 {[%clk 0:00:33]}  Bxc2 {[%clk 0:02:20]} 16. Qxc2 {[%clk 0:00:32]}  Qe7 {[%clk 0:02:20]} 17. Rfe1 {[%clk 0:00:30]}  g5 {[%clk 0:01:38]} 18. Nh3 {[%clk 0:00:24]}  g4 {[%clk 0:01:39]} 19. Nf4 {[%clk 0:00:24]}  Kh8 {[%clk 0:01:34]} 20. e4 {[%clk 0:00:20]}  gxf3 {[%clk 0:01:25]} 21. gxf3 {[%clk 0:00:20]}  Rg8+ {[%clk 0:01:23]} 22. Kh1 {[%clk 0:00:18]}  dxe4 {[%clk 0:01:24]} 23. fxe4 {[%clk 0:00:17]}  Ng4 {[%clk 0:01:21]} 24. Ng2 {[%clk 0:00:14]}  Qf6 {[%clk 0:01:04]} 25. Bf4 {[%clk 0:00:13]}  Qg6 {[%clk 0:01:00]} 26. e5 {[%clk 0:00:12]}  Rae8 {[%clk 0:00:55]} 27. Qxg6 {[%clk 0:00:11]}  Rxg6 {[%clk 0:00:52]} 28. Ne3 {[%clk 0:00:11]}  Nxe3 {[%clk 0:00:40]} 29. Rxe3 {[%clk 0:00:11]}  Nb6 {[%clk 0:00:41]} 30. Rf3 {[%clk 0:00:12]}  Nd5 {[%clk 0:00:39]} 31. Bd2 {[%clk 0:00:12]}  f6 {[%clk 0:00:37]} 32. e6 {[%clk 0:00:10]}  Kg7 {[%clk 0:00:20]} 33. Rf5 {[%clk 0:00:10]}  Ne7 {[%clk 0:00:15]} 34. Rc5 {[%clk 0:00:11]}  Rg8 {[%clk 0:00:14]} 35. d5 {[%clk 0:00:10]}  Nf5 {[%clk 0:00:12]} 36. Rc7+ {[%clk 0:00:09]}  Kh8 {[%clk 0:00:10]} 37. Bf4 {[%clk 0:00:09]}  Nh4 {[%clk 0:00:08]} 38. e7 {[%clk 0:00:08]}  Nf3 {[%clk 0:00:07]} 39. e8=Q {[%clk 0:00:04]}  Nxe1 {[%clk 0:00:04]} 40. Qxe1 {[%clk 0:00:03]}  Rg4 {[%clk 0:00:03]} 41. Bg3 {[%clk 0:00:04]}  Re4 {[%clk 0:00:03]} 42. Qf1 {[%clk 0:00:04]}  f5 {[%clk 0:00:03]} 43. Qxf5 {[%clk 0:00:04]}  Re1+ {[%clk 0:00:03]} 44. Bxe1 {[%clk 0:00:03]} 1-0


[Site "https://www.chess.com"]

[Event "Titled Tuesday Blitz February 07 Early 2023"]
[White "Borrmann, Laurenz"]
[Black "Khokhlova, Daria"]
[WhiteFideId "312187930"]
[BlackFideId "24182729"]
[WhiteElo "2304"]
[BlackElo "2111"]
[Result "1-0"]
[Round "05"]
[TimeControl "180+2"]
[Date "2023.02.07"]
[WhiteClock "0:00:03"]
[BlackClock "0:00:01"]

1. Nf3 {[%clk 0:02:54]}  c5 {[%clk 0:02:56]} 2. e4 {[%clk 0:02:53]}  d6 {[%clk 0:02:53]} 3. d4 {[%clk 0:02:51]}  cxd4 {[%clk 0:02:53]} 4. Nxd4 {[%clk 0:02:51]}  Nf6 {[%clk 0:02:53]} 5. Nc3 {[%clk 0:02:51]}  a6 {[%clk 0:02:52]} 6. Bg5 {[%clk 0:02:19]}  e6 {[%clk 0:02:49]} 7. h4 {[%clk 0:02:07]}  Be7 {[%clk 0:02:46]} 8. Qd2 {[%clk 0:02:01]}  O-O {[%clk 0:02:35]} 9. f3 {[%clk 0:01:51]}  Qc7 {[%clk 0:02:18]} 10. h5 {[%clk 0:01:39]}  b5 {[%clk 0:01:56]} 11. a3 {[%clk 0:01:14]}  Nbd7 {[%clk 0:01:52]} 12. O-O-O {[%clk 0:01:07]}  Nb6 {[%clk 0:01:47]} 13. h6 {[%clk 0:00:58]}  g6 {[%clk 0:01:45]} 14. Nb3 {[%clk 0:00:52]}  Re8 {[%clk 0:01:34]} 15. Qf4 {[%clk 0:00:47]}  e5 {[%clk 0:01:00]} 16. Qh4 {[%clk 0:00:45]}  Nh5 {[%clk 0:00:59]} 17. g3 {[%clk 0:00:24]}  Be6 {[%clk 0:00:27]} 18. Be2 {[%clk 0:00:20]}  Qd8 {[%clk 0:00:20]} 19. f4 {[%clk 0:00:13]}  Bxg5 {[%clk 0:00:18]} 20. fxg5 {[%clk 0:00:13]}  Bxb3 {[%clk 0:00:16]} 21. cxb3 {[%clk 0:00:10]}  Qe7 {[%clk 0:00:14]} 22. Bxh5 {[%clk 0:00:09]}  gxh5 {[%clk 0:00:15]} 23. Qxh5 {[%clk 0:00:10]}  Qe6 {[%clk 0:00:15]} 24. Kc2 {[%clk 0:00:09]}  Rac8 {[%clk 0:00:10]} 25. Rdf1 {[%clk 0:00:08]}  Qg6 {[%clk 0:00:09]} 26. Qxg6+ {[%clk 0:00:07]}  fxg6 {[%clk 0:00:09]} 27. Rf6 {[%clk 0:00:08]}  Rcd8 {[%clk 0:00:08]} 28. Rd1 {[%clk 0:00:07]}  Nc8 {[%clk 0:00:05]} 29. Nd5 {[%clk 0:00:06]}  Rf8 {[%clk 0:00:04]} 30. Rdf1 {[%clk 0:00:06]}  Rxf6 {[%clk 0:00:04]} 31. Rxf6 {[%clk 0:00:06]}  Rd7 {[%clk 0:00:04]} 32. Kc3 {[%clk 0:00:06]}  Ne7 {[%clk 0:00:04]} 33. Nxe7+ {[%clk 0:00:03]}  Rxe7 {[%clk 0:00:05]} 34. Rxd6 {[%clk 0:00:03]}  Rc7+ {[%clk 0:00:06]} 35. Kd3 {[%clk 0:00:03]}  Ra7 {[%clk 0:00:05]} 36. Re6 {[%clk 0:00:03]}  Rd7+ {[%clk 0:00:05]} 37. Ke2 {[%clk 0:00:04]}  Kf7 {[%clk 0:00:06]} 38. Rxe5 {[%clk 0:00:04]}  Rc7 {[%clk 0:00:06]} 39. Rd5 {[%clk 0:00:04]}  Rc2+ {[%clk 0:00:06]} 40. Rd2 {[%clk 0:00:04]}  Rc5 {[%clk 0:00:06]} 41. Ke3 {[%clk 0:00:04]}  Rxg5 {[%clk 0:00:06]} 42. Kf4 {[%clk 0:00:04]}  Rc5 {[%clk 0:00:06]} 43. Rd7+ {[%clk 0:00:04]}  Kf6 {[%clk 0:00:06]} 44. Rxh7 {[%clk 0:00:04]}  g5+ {[%clk 0:00:06]} 45. Kg4 {[%clk 0:00:03]}  Kg6 {[%clk 0:00:06]} 46. Ra7 {[%clk 0:00:03]}  Kxh6 {[%clk 0:00:05]} 47. Rxa6+ {[%clk 0:00:04]}  Kg7 {[%clk 0:00:06]} 48. Rb6 {[%clk 0:00:04]}  Re5 {[%clk 0:00:05]} 49. b4 {[%clk 0:00:04]}  Rxe4+ {[%clk 0:00:05]} 50. Kxg5 {[%clk 0:00:05]}  Re5+ {[%clk 0:00:06]} 51. Kf4 {[%clk 0:00:06]}  Rd5 {[%clk 0:00:06]} 52. Ke4 {[%clk 0:00:06]}  Rg5 {[%clk 0:00:06]} 53. Kd4 {[%clk 0:00:05]}  Kf7 {[%clk 0:00:04]} 54. b3 {[%clk 0:00:04]}  Ke7 {[%clk 0:00:04]} 55. a4 {[%clk 0:00:03]}  Rxg3 {[%clk 0:00:03]} 56. Rxb5 {[%clk 0:00:03]}  Rxb3 {[%clk 0:00:03]} 57. Kc4 {[%clk 0:00:02]}  Rb1 {[%clk 0:00:03]} 58. a5 {[%clk 0:00:03]}  Kd7 {[%clk 0:00:03]} 59. Rc5 {[%clk 0:00:02]}  Rc1+ {[%clk 0:00:01]} 60. Kb5 {[%clk 0:00:03]}  Ra1 {[%clk 0:00:01]} 61. Rc3 {[%clk 0:00:03]}  Ra2 {[%clk 0:00:01]} 62. Kb6 {[%clk 0:00:03]}  Ra1 {[%clk 0:00:01]} 63. b5 {[%clk 0:00:03]} 1-0


[Site "https://www.chess.com"]

[Event "Titled Tuesday Blitz February 07 Early 2023"]
[White "ritanovikova"]
[Black "Osmak, Yuliia"]
[BlackFideId "14101602"]
[WhiteElo "2202"]
[BlackElo "2440"]
[Result "0-1"]
[Round "05"]
[TimeControl "180+2"]
[Date "2023.02.07"]
[WhiteClock "0:00:03"]
[BlackClock "0:00:57"]

1. d4 {[%clk 0:02:59]}  Nf6 {[%clk 0:02:59]} 2. Bf4 {[%clk 0:02:59]}  c6 {[%clk 0:02:57]} 3. e3 {[%clk 0:02:57]}  Qb6 {[%clk 0:02:57]} 4. Qc1 {[%clk 0:02:52]}  d6 {[%clk 0:02:54]} 5. Nd2 {[%clk 0:02:46]}  g6 {[%clk 0:02:52]} 6. Ngf3 {[%clk 0:02:44]}  Bg7 {[%clk 0:02:50]} 7. Be2 {[%clk 0:02:37]}  Nh5 {[%clk 0:02:48]} 8. Bg5 {[%clk 0:02:33]}  h6 {[%clk 0:02:47]} 9. Bh4 {[%clk 0:02:27]}  g5 {[%clk 0:02:47]} 10. Ng1 {[%clk 0:02:21]}  Nf4 {[%clk 0:02:46]} 11. exf4 {[%clk 0:01:50]}  gxh4 {[%clk 0:02:44]} 12. c3 {[%clk 0:01:47]}  Be6 {[%clk 0:02:33]} 13. h3 {[%clk 0:01:45]}  Nd7 {[%clk 0:02:32]} 14. Ngf3 {[%clk 0:01:43]}  Bf6 {[%clk 0:02:30]} 15. Ne4 {[%clk 0:01:38]}  O-O-O {[%clk 0:02:30]} 16. Nxf6 {[%clk 0:01:35]}  Nxf6 {[%clk 0:02:31]} 17. Nxh4 {[%clk 0:01:29]}  Bd5 {[%clk 0:02:21]} 18. Bf3 {[%clk 0:01:22]}  e5 {[%clk 0:02:18]} 19. Qd2 {[%clk 0:00:55]}  exd4 {[%clk 0:02:04]} 20. Qxd4 {[%clk 0:00:50]}  Rhe8+ {[%clk 0:01:56]} 21. Kf1 {[%clk 0:00:36]}  Qxb2 {[%clk 0:01:57]} 22. Rd1 {[%clk 0:00:31]}  Ne4 {[%clk 0:01:43]} 23. Bxe4 {[%clk 0:00:26]}  Rxe4 {[%clk 0:01:41]} 24. Qd2 {[%clk 0:00:20]}  Qxd2 {[%clk 0:01:18]} 25. Rxd2 {[%clk 0:00:21]}  Rxf4 {[%clk 0:01:19]} 26. Rd4 {[%clk 0:00:16]}  Rxd4 {[%clk 0:01:18]} 27. cxd4 {[%clk 0:00:17]}  Bxa2 {[%clk 0:01:18]} 28. Ke2 {[%clk 0:00:15]}  Bc4+ {[%clk 0:01:18]} 29. Kd2 {[%clk 0:00:15]}  Re8 {[%clk 0:01:18]} 30. Kc3 {[%clk 0:00:13]}  b5 {[%clk 0:01:17]} 31. Nf5 {[%clk 0:00:13]}  Kc7 {[%clk 0:01:08]} 32. Ra1 {[%clk 0:00:11]}  Ra8 {[%clk 0:01:04]} 33. Nxh6 {[%clk 0:00:11]}  a5 {[%clk 0:01:04]} 34. Ng4 {[%clk 0:00:10]}  d5 {[%clk 0:01:03]} 35. Ne5 {[%clk 0:00:09]}  b4+ {[%clk 0:00:58]} 36. Kb2 {[%clk 0:00:09]}  a4 {[%clk 0:00:57]} 37. Nxf7 {[%clk 0:00:05]}  a3+ {[%clk 0:00:57]} 38. Kc2 {[%clk 0:00:04]}  b3+ {[%clk 0:00:56]} 39. Kc3 {[%clk 0:00:03]}  b2 {[%clk 0:00:57]} 0-1


[Site "https://www.chess.com"]